Cogmind - Beta 11.1 @@@ ROGUE MODE // 2022.11.14 @ 13:03:27 Player: darki Result: Destroyed by D-53 Grenadier with Mini Grenade Launcher Performance ------------- Evolutions (0) 0 Regions Visited (4) 800 Robots Destroyed (9) 45 Value Destroyed (147) 147 Prototype IDs (23) 460 Alien Tech Used (0) 0 Bonus (300) 300 TOTAL SCORE: 1752 Bonus ------- Aligned with FarCom 300 Cogmind --------- Core Integrity 0/250 Matter 300/300 Energy 100/100 System Corruption 0% Temperature Cool (0) Movement Core (100) Ox1 Location -9/Mines Parts ------- > --- POWER (1) -------- (None) > --- PROPULSION (2) --- (None) > --- UTILITY (2) ------ Small Storage Unit Hacking Suite > --- WEAPON (2) ------- (None) > --- INVENTORY (8) ---- Flight Unit Signal Interpreter Army-in-a-Box (30/30) Peak State ------------ > --- POWER ------------ Ion Engine > --- PROPULSION ------- Aluminum Leg Aluminum Leg > --- UTILITY ---------- Small Storage Unit Hacking Suite > --- WEAPON ----------- Assault Rifle Enhanced Flamer > --- INVENTORY -------- Flight Unit Signal Interpreter Army-in-a-Box [Rating: 16] Favorites ----------- Power Ion Engine Engine Ion Engine Propulsion Aluminum Leg Leg Aluminum Leg Utility Small Storage Unit Storage Small Storage Unit Hackware Hacking Suite Weapon Assault Rifle Ballistic Gun Assault Rifle Launcher Grenade Launcher Special Weapon Enhanced Flamer Build | -11 -10 -10 -10 -9 ------- Run | Scr Mat Min Exi Min Slots Evolved . | . . . . . Power . | . . . . . Propulsion . | . . . . . Utility . | . . . . . Weapon . | . . . . . Parts Attached 4 | . 1 1 . 2 Power 1 | . . 1 . . Engine 1 | . . 1 . . Core . | . . . . . Reactor . | . . . . . Propulsion . | . . . . . Treads . | . . . . . Leg . | . . . . . Wheel . | . . . . . Hover . | . . . . . Flight . | . . . . . Utility 1 | . 1 . . . Device . | . . . . . Storage . | . . . . . Processor . | . . . . . Hackware 1 | . 1 . . . Protection . | . . . . . Artifact . | . . . . . Weapon 2 | . . . . 2 Energy Gun . | . . . . . Energy Cannon . | . . . . . Ballistic Gun . | . . . . . Ballistic Cannon . | . . . . . Launcher 1 | . . . . 1 Special Weapon 1 | . . . . 1 Impact Weapon . | . . . . . Slashing Weapon . | . . . . . Piercing Weapon . | . . . . . Special Melee Weapon . | . . . . . Unidentified Prototypes . | . . . . . Parts Lost 6 | . . 1 . 5 Power 2 | . . 1 . 1 Propulsion 2 | . . . . 2 Utility . | . . . . . Weapon 2 | . . . . 2 Highest Loss Streak 5 | . . 1 . 5 To Critical Strikes . | . . . . . Average Slot Usage (%) 98 | . 94 99 100 96 Engine 13 | . 14 13 14 12 Leg 27 | . 28 28 28 26 Storage 14 | . 14 14 14 14 Hackware 13 | . 8 14 14 14 Ballistic Gun 23 | . 28 28 28 9 Launcher 1 | . . . . 7 Special Weapon 2 | . . . . 10 Naked Turns . | . . . . . Heaviest Build 15 | 11 11 13 13 15 Greatest Support 20 | 20 20 20 20 20 Greatest Overweight (x) 2 | . . . . 2 Average Overweight (x) . | . . . . . Largest Inventory Capacity 8 | . 8 8 8 8 Average Capacity 8 | . 8 8 8 8 Most Carried 8 | . 8 8 8 8 Average Carried 7 | . 7 7 7 8 Final Capacity 8 | 8 8 8 8 8 Final Carried 8 | 6 8 7 8 8 Class Distribution -------------------- 100% | Mutant Dominant Class ---------------- Mutant | -10/Materials Mutant | -10/Mines Mutant | -10/Exiles Mutant | -9/Mines Resources | -11 -10 -10 -10 -9 ----------- Run | Scr Mat Min Exi Min Matter Collected 294 | 200 54 23 . 17 Remotely . | . . . . . Salvage Created 214 | . 168 46 . . Parts 22 | . 18 4 . . Haulers Intercepted . | . . . . . Recyclers Shooed . | . . . . . Parts Field Recycled . | . . . . . Retrieved Matter . | . . . . . Parts Self-Destructed . | . . . . . Prevented . | . . . . . Kills | -11 -10 -10 -10 -9 ------- Run | Scr Mat Min Exi Min Combat Hostiles Destroyed 5 | . 4 1 . . Guns 5 | . 4 1 . . Classes Destroyed 5 | . 5 . . . Worker 1 | . 1 . . . Operator 1 | . 1 . . . Watcher 2 | . 2 . . . Swarmer 3 | . 3 . . . Grunt 2 | . 1 1 . . Best Kill Streak 8 | . 8 1 . . Combat Bots Only 4 | . 4 1 . . Max Kills in Single Turn 1 | . 1 1 . . Gunslinging . | . . . . . Exploded . | . . . . . Melee . | . . . . . Uniques/NPCs Destroyed . | . . . . . Combat | -11 -10 -10 -10 -9 -------- Run | Scr Mat Min Exi Min Damage Taken 755 | . 64 129 . 562 Core 266 | . . 42 . 224 Absorbed by Shields . | . . . . . Core Remaining (%) 100 | 100 . . . . Volleys Fired 15 | . 11 4 . . Largest 2 | . 2 2 . . Hottest 40 | . 40 40 . . Shots Fired 30 | . 22 8 . . Gun 30 | . 22 8 . . Cannon . | . . . . . Launcher . | . . . . . Special . | . . . . . Kinetic 30 | . 22 8 . . Thermal . | . . . . . Explosive . | . . . . . Electromagnetic . | . . . . . Robot Hit Streak 5 | . 5 2 . . Robot Miss Streak 4 | . 4 1 . . Penetration Max . | . . . . . Secondary Targets . | . . . . . Shots Hit Robots 14 | . 10 4 . . Core Hits 12 | . 10 2 . . Critical Kills 1 | . 1 . . . Critical Parts Destroyed . | . . . . . Critical Strikes 1 | . 1 . . . Destroy 1 | . 1 . . . Melee Attacks . | . . . . . Impact . | . . . . . Slashing . | . . . . . Piercing . | . . . . . Sneak Attacks . | . . . . . Combat Hostiles . | . . . . . Follow-up Attacks . | . . . . . Damage Inflicted 188 | . 130 58 . . Guns 173 | . 130 43 . . Cannons . | . . . . . Explosions . | . . . . . Melee . | . . . . . Ramming 15 | . . 15 . . Kinetic 173 | . 130 43 . . Thermal . | . . . . . Explosive . | . . . . . Electromagnetic . | . . . . . Impact . | . . . . . Slashing . | . . . . . Piercing . | . . . . . Highest Corruption . | . . . . . Average Corruption . | . . . . . Corruption Purged . | . . . . . Corruption Blocked . | . . . . . Overload Shots . | . . . . . Overflow Damage . | . . . . . Projectiles . | . . . . . Explosions . | . . . . . Melee . | . . . . . Knockbacks . | . . . . . Impact . | . . . . . Kinetic . | . . . . . Secondary . | . . . . . Self-Inflicted Damage . | . . . . . Shots . | . . . . . Rammed . | . . . . . Targets Rammed 5 | . . 5 . . Kicked 5 | . . 5 . . Crushed . | . . . . . Highest Temperature 9 | . 6 9 . . Average Temperature 6 | . 6 6 . . Received Heat Transfer 102 | . 12 90 . . Siege Activations . | . . . . . Robots Corrupted . | . . . . . Combat Hostiles . | . . . . . Parts Fried . | . . . . . Impact Corruptions . | . . . . . Robots Melted . | . . . . . Combat Hostiles . | . . . . . Parts Melted . | . . . . . Heat Transferred . | . . . . . Parts Sabotaged . | . . . . . Parts Stolen . | . . . . . Parts Stripped . | . . . . . Power Chain Reactions . | . . . . . Missiles Intercepted . | . . . . . Alert | -11 -10 -10 -10 -9 ------- Run | Scr Mat Min Exi Min Peak Influence 169 | . 169 135 . . Initial 65 | . . 65 . . Average 55 | . 70 99 . . Maximum Alert Level . | . . . . . Low Security (%) 100 | . 100 100 . 100 Level 1 . | . . . . . Level 2 . | . . . . . Level 3 . | . . . . . Level 4 . | . . . . . Level 5 . | . . . . . High Security . | . . . . . Max Security . | . . . . . Squads Dispatched 1 | . 1 . . . Investigation . | . . . . . Extermination . | . . . . . Reinforcement 1 | . 1 . . . Assault . | . . . . . Garrison . | . . . . . Intercept . | . . . . . Searches Triggered . | . . . . . Construction Impeded . | . . . . . Haulers Reinforced . | . . . . . Active Scanning Responses . | . . . . . Cargo Convoy Interrupts . | . . . . . Stealth | -11 -10 -10 -10 -9 --------- Run | Scr Mat Min Exi Min Distress Signals 1 | . 1 . . . Communications Jammed . | . . . . . Distress Signals . | . . . . . Times Spotted 17 | . 11 4 . 2 Peak Tracking Total 4 | . 4 2 . 2 Tactical Retreats 2 | . . 2 . . Traps | -11 -10 -10 -10 -9 ------- Run | Scr Mat Min Exi Min Traps Triggered . | . . . . . Indirectly . | . . . . . Trap Hack Attempts . | . . . . . Triggered . | . . . . . Disarmed . | . . . . . Reprogrammed . | . . . . . Reused . | . . . . . Traps Extracted . | . . . . . Installed . | . . . . . Triggered . | . . . . . Machines | -11 -10 -10 -10 -9 ---------- Run | Scr Mat Min Exi Min Machines Disabled . | . . . . . Max in Single Turn . | . . . . . Machines Sabotaged . | . . . . . Garrisons Compromised . | . . . . . Overloaded Fab Kills . | . . . . . Hacking | -11 -10 -10 -10 -9 --------- Run | Scr Mat Min Exi Min Machines Accessed 2 | . 1 . 1 . Terminals 1 | . 1 . . . Fabricators . | . . . . . Repair Stations . | . . . . . Recycling Units . | . . . . . Scanalyzers . | . . . . . Garrison Access . | . . . . . Total Hacks 2 | . 1 . 1 . Successful 1 | . . . 1 . Failed 1 | . 1 . . . Catastrophic . | . . . . . Database Lockouts . | . . . . . Manual 2 | . 1 . 1 . Terminals 1 | . 1 . . . Fabricators . | . . . . . Repair Stations . | . . . . . Recycling Units . | . . . . . Scanalyzers . | . . . . . Garrison Access . | . . . . . Terminal Hacks 1 | . . . 1 . EX-Prototype ID Bank 1 | . . . 1 . Fabricator Hacks . | . . . . . Repair Station Hacks . | . . . . . Recycling Unit Hacks . | . . . . . Scanalyzer . | . . . . . Garrison Access Hacks . | . . . . . Unauthorized Hacks . | . . . . . Terminals . | . . . . . Fabricators . | . . . . . Repair Stations . | . . . . . Recycling Units . | . . . . . Scanalyzers . | . . . . . Garrison Access . | . . . . . Data Cores Recovered . | . . . . . Used . | . . . . . Hacking Detections . | . . . . . Full Trace Events . | . . . . . Feedback Events . | . . . . . Feedback Blocked . | . . . . . Robot Schematics Acquired . | . . . . . Robots Built . | . . . . . Authchips . | . . . . . Time . | . . . . . Total Robot Build Rating . | . . . . . Part Schematics Acquired . | . . . . . Parts Built . | . . . . . Authchips . | . . . . . Time . | . . . . . Total Part Build Rating . | . . . . . Parts Repaired . | . . . . . Time . | . . . . . Parts Recycled . | . . . . . Recycled Matter . | . . . . . Retrieved Matter . | . . . . . Retrieved Components . | . . . . . Parts Scanalyzed . | . . . . . Part Schematics Acquired . | . . . . . Parts Damaged . | . . . . . Bothacking | -11 -10 -10 -10 -9 ------------ Run | Scr Mat Min Exi Min Used RIF Installer . | . . . . . Robots Hacked . | . . . . . Non-combat . | . . . . . Combat . | . . . . . Robot Hacks Applied . | . . . . . Relay Couplers Released . | . . . . . Fabnet Peak Effective % . | . . . . . Robots Rewired . | . . . . . Allies Hacked . | . . . . . Hacks Repelled . | . . . . . Allies | -11 -10 -10 -10 -9 -------- Run | Scr Mat Min Exi Min Total Allies . | . . . . . Largest Group . | . . . . . Highest-Rated Group . | . . . . . Highest-Rated Ally . | . . . . . Total Orders . | . . . . . Ally Attacks . | . . . . . Total Damage . | . . . . . Kills . | . . . . . Allies Corrupted . | . . . . . Allies Melted . | . . . . . Intel | -11 -10 -10 -10 -9 ------- Run | Scr Mat Min Exi Min Robot Analysis Total . | . . . . . Derelict Logs Recovered 2 | . . 1 . 1 Drone Launches . | . . . . . Drone Recoveries . | . . . . . Exploration | -11 -10 -10 -10 -9 ------------- Run | Scr Mat Min Exi Min Turns Passed 1050 | . 113 289 387 261 Spaces Moved 759 | 1 59 195 318 186 Core 5 | . . . . 5 Treads . | . . . . . Legs 754 | 1 59 195 318 181 Wheels . | . . . . . Hover . | . . . . . Flight . | . . . . . Fastest Speed 100 | 120 120 120 120 100 Average Speed 120 | 120 120 120 120 120 Slowest Speed 150 | 120 120 120 120 150 Overloaded Moves . | . . . . . Propulsion Burnouts . | . . . . . Robots Hopped . | . . . . . Cave-ins Triggered . | . . . . . Exploration Rate (%) 34 | 2 20 34 62 52 Regions Visited 4 Branch Regions 3 Pre-discovered Areas 2 | . . . . 2 Known Exits Taken . | . . . . . Unknown Exits Taken 4 | 1 1 1 1 . Scrap Searched 2 | . . 1 . 1 Spaces Dug . | . . . . . Terrain Destroyed . | . . . . . Melee . | . . . . . Projectile . | . . . . . AOE . | . . . . . Terrain Rammed . | . . . . . Walls Destroyed . | . . . . . Machines Disabled . | . . . . . Actions | -11 -10 -10 -10 -9 --------- Run | Scr Mat Min Exi Min Total 876 | . 82 242 329 223 Wait 77 | . 6 38 . 33 Move 755 | . 58 194 317 186 Hop . | . . . . . Pick Up 8 | . 4 . 4 . Fast Attach 3 | . 1 . . 2 Attach 1 | . . 1 . . Detach . | . . . . . Swap . | . . . . . Drop 12 | . 2 . 8 2 Fire 15 | . 11 4 . . Melee . | . . . . . Ram . | . . . . . Kick 5 | . . 5 . . Crush . | . . . . . Escape Stasis . | . . . . . Rewire . | . . . . . Trap . | . . . . . Miscellaneous . | . . . . . Route ------- -11/Scrapyard -10/Materials -10/Mines (discovered 2 exits: [*Mat] / *Exi) -10/Exiles (discovered 2 exits: [*Min x2]) -9/Mines History --------- Turn | Location | Event 1 | -11/Scrapyard | Discovered new exit (range 0) 1 | -11/Scrapyard | Entered Materials 70 | -10/Materials | Discovered new exit (range 10) 114 | -10/Materials | Entered Mines 246 | -10/Mines | Discovered new exit (range 6) 313 | -10/Mines | Build established: Mutant 397 | -10/Mines | Deemed a non-threat by the Exiles lab entrance 399 | -10/Mines | Discovered new exit (range 5) 403 | -10/Mines | Entered Exiles 444 | -10/Exiles | Met 8R-AWN 483 | -10/Exiles | Met EX-HEX 511 | -10/Exiles | Discovered new exit (range 14) 608 | -10/Exiles | Met EX-BIN 625 | -10/Exiles | Aligned with FarCom system 626 | -10/Exiles | Given EX-Vault access code 657 | -10/Exiles | Opened EX-Vault 674 | -10/Exiles | Found Army-in-a-Box 700 | -10/Exiles | Warned to stay clear of 0b10 Research branches 735 | -10/Exiles | Met EX-DEC 777 | -10/Exiles | Discovered new exit (range 12) 790 | -10/Exiles | Left Exiles lab with Army-in-a-Box 790 | -10/Exiles | Entered Mines 802 | -9/Mines | Met a Derelict bent on vengeance 852 | -9/Mines | A weapon hastily lodged in a ceiling crevice suddenly fell to the ground 916 | -9/Mines | YI-UF0 nonchalantly dropped a Grenade Launcher on the ground 952 | -9/Mines | Learned location of Zion (-7) 966 | -9/Mines | Learned location of Storage (-7) 1006 | -9/Mines | Assembled infested the area 1011 | -9/Mines | Assisted by a Guerilla fighting off Assembled 1043 | -9/Mines | Core integrity fell below 50% 1050 | -9/Mines | Core integrity fell below 20% 1051 | -9/Mines | Destroyed by D-53 Grenadier with Mini Grenade Launcher Last Messages --------------- 00968_ RN-R24(g): "We scattered so the Unaware couldn't effectively use their advantage in numbers, and I suggest you do the same." 00968_ RN-R24(g) slips back into the shadows. 00987_ U-05 Engineer lays Concrete. 01006_ ALERT: Infestation in the mines, dispatching Demolisher response squad. 01006_ U-05 Engineer lays Concrete. 01011_ A derelict emerges from the shadows: "You need to get out of here! I've been tracking a group of Assembled to figure out where they're coming from, and they're closing on this area, come on!" 01033_ YC-FF0(h) destroyed. 01037_ Ion Engine destroyed. 01038_ The unstable cave ceiling collapses. 01039_ Aluminum Leg destroyed. 01041_ The unstable cave ceiling collapses. 01044_ Aluminum Leg destroyed. 01044_ Enh. Flamer destroyed. 01046_ The unstable cave ceiling collapses. 01049_ Grenade Launcher destroyed. 01050_ The unstable cave ceiling collapses. Map ----- +----------------------------------------------------+ | | | | | | | | | | | | | | | | | | | | | | | | | | | | | | | | | | | ???????????????????????????????????????????? | | ??????????????????##########???????????????? | | ?????????????????## ###?????????????? | | ????????????????## ##????????????? | | ????????????????# ##???????????? | | ???????????????## #???????????? | | ???????????????# # ##??????????? | | ??????????????## #??????????? | | ??????????????# @ # " #??????????? | | ??????????????# ; ##??????????? | | ??????????????# d # # ###???????????? | | ???????????#### ##?????????????? | | ???????????#"% #??????????????? | | ???????????# ## d ###????????????? | | ???????????#??# # ####?#######?? | | ??????????????#### % ### ##? | | ?????????????????# #? | | ?????????????????# #? | | ?????????????????# # # ##? | | ?????????????????# ##? | | ????????????gg???# #### ## | | ?????????????????###### #??#### | | ????????????????????# ?????## | | ???????????????????# ?????# | | ???????????????????# ?????# | | ???????????????????# ##????## | | ???????????????????# ##??????## # | | ???????????????????# ##????????###### | | ???????????????????## ###??????????????? | | ????????????????????# #?????????????????? | | ????????????????????# ??????????????????# | | ???????????????????? #??######??????????# | | ?????????????????????? ???## ##?????????# | +----------------------------------------------------+ Best States ------------- Heat Dissipation 25 Energy Generation 10 Energy Capacity 250 Matter Stores 300 Matter Capacity 300 Sight Range 16 Terrain Scan Density 10 Evasion (%) 55 Offensive Hacking 10 Item Schematics ----------------- None Robot Schematics ------------------ None Fabricated ------------ Nothing Alien Tech Used ----------------- None Achievements -------------- None Challenges ------------ None Game ------ Seed ArmageddonPulseBroadsword Manual? 0 Play Time 00:07:26 Cumulative 123.0 hours Start 2022.11.14 @ 12:57:57 End 2022.11.14 @ 13:03:27 Sessions 1 Manual Loads 0 Difficulty Rogue Special Mode None Game No. 134 Rogue 134 Adventurer 0 Explorer 0 Win Type - Total 0 Types 0/0/0/0/0/0/0/0/0 Lore% 53 Gallery% 68 Achievement% 53 Wizard Run 0 Options --------- ASCII 0 Keyboard 0 Movement Numpad Keybinds 0 Fullscreen 1 Font 18/SmallcapsGlow Map View 76x50 Tactical HUD 1 Map Filters NONE Filters NONE Steam 1 RUN: edba1994-59ca-4234-8d0b-f599829be5f2